fUST/lending_fUST_20260101
["ID","MTS","AMOUNT","RATE_DAILY","PERIOD"]
[400248220,1767217841797,-312890.810534,0.000249,2]
[400248222,1767217841806,-28444.6191395,0.00024921,2]
[400248223,1767217841816,-17517.2751342,0.00024921,2]
[400248225,1767217841825,-212.8899993,0.00024931,2]
[400248226,1767217841835,-626.66,0.00024931,2]
[400248228,1767217841845,-624.29,0.00024931,2]
[400248230,1767217841855,-832.18,0.00024931,2]
[400248232,1767217841865,-205.56018131,0.00024931,2]
[400248234,1767217841874,-989.73,0.00024931,2]
[400248236,1767217841884,-3814.95,0.00024931,2]
[400248238,1767217841893,-500.0,0.00024931,2]
[400248240,1767217841904,-500.0,0.00024931,2]
[400248242,1767217841914,-4947.15,0.00024931,2]
[400248244,1767217841923,-1110.78,0.00024931,2]
[400248245,1767217841932,-546.89,0.00024931,2]
[400248247,1767217841941,-500.0,0.00024931,2]
[400248250,1767217841952,-512.77,0.00024931,2]
[400248252,1767217841962,-500.0,0.00024931,2]
[400248254,1767217841971,-541.28,0.00024931,2]
[400248255,1767217841981,-500.0,0.00024931,2]
[400248257,1767217841991,-150.0,0.00024932,2]
[400248259,1767217842001,-150.0,0.00025069,2]
[400248261,1767217842010,-571.32,0.0002512,2]
[400248264,1767217842020,-212.8899993,0.00025205,2]
[400248265,1767217842030,-624.29,0.00025205,2]
[400248267,1767217842039,-832.18,0.00025205,2]
[400248269,1767217842048,-989.73,0.00025205,2]
[400248271,1767217842058,-3814.95,0.00025205,2]
[400248273,1767217842068,-500.0,0.00025205,2]
[400248274,1767217842077,-183.92225153,0.00025205,2]
[400248275,1767217842087,-4947.15,0.00025205,2]
[400248276,1767217842097,-1110.78,0.00025205,2]
[400248277,1767217842106,-546.89,0.00025205,2]
[400248278,1767217842115,-500.0,0.00025205,2]
[400248279,1767217842128,-512.77,0.00025205,2]
[400248280,1767217842138,-500.0,0.00025205,2]
[400248281,1767217842148,-541.28,0.00025205,2]
[400248282,1767217842158,-424.40079341,0.00025205,2]
[400248283,1767217842168,-301.50509152,0.00025205,2]
[400248284,1767217842178,-150.0,0.00025206,2]
[400248285,1767217842187,-250.0,0.00025343,2]
[400248286,1767217842196,-28444.6191395,0.00025469,2]
[400248287,1767217842206,-17517.2751342,0.00025469,2]
[400248288,1767217842216,-921.25637526,0.0002547,2]
[400248289,1767217842226,-212.8899993,0.00025479,2]
[400248290,1767217842235,-624.29,0.00025479,2]
[400248291,1767217842245,-832.18,0.00025479,2]
[400248292,1767217842255,-989.73,0.00025479,2]
[400248293,1767217842264,-3814.95,0.00025479,2]
[400248294,1767217842274,-500.0,0.00025479,2]
[400248295,1767217842284,-4947.15,0.00025479,2]
[400248296,1767217842294,-1110.78,0.00025479,2]
[400248297,1767217842303,-546.89,0.00025479,2]
[400248298,1767217842313,-500.0,0.00025479,2]
[400248299,1767217842323,-512.77,0.00025479,2]
[400248300,1767217842332,-500.0,0.00025479,2]
[400248302,1767217842341,-541.28,0.00025479,2]
[400248304,1767217842351,-827.96,0.000255,14]
[400248306,1767217842360,-1080.36507781,0.00025526,2]
[400248308,1767217842369,-342.58605531,0.00025674,2]
[400248310,1767217842379,-151.0,0.00025682,2]
[400248312,1767217842389,-212.8899993,0.00025753,2]
[400248314,1767217842399,-624.29,0.00025753,2]
[400248316,1767217842408,-832.18,0.00025753,2]
[400248317,1767217842418,-989.73,0.00025753,2]
[400248318,1767217842427,-3814.95,0.00025753,2]
[400248319,1767217842436,-500.0,0.00025753,2]
[400248321,1767217842446,-4947.15,0.00025753,2]
[400248322,1767217842456,-1110.78,0.00025753,2]
[400248324,1767217842466,-546.89,0.00025753,2]
[400248326,1767217842476,-500.0,0.00025753,2]
[400248327,1767217842485,-512.77,0.00025753,2]
[400248329,1767217842497,-500.0,0.00025753,2]
[400248331,1767217842507,-541.28,0.00025753,2]
[400248333,1767217842516,-152.26504483,0.00025877,2]
[400248335,1767217842525,-1265.7460079,0.00025915,2]
[400248337,1767217842535,-480.2163596,0.00025915,2]
[400248339,1767217842544,-3986.8732121,0.00025915,2]
[400248341,1767217842553,-212.8899993,0.00026027,2]
[400248342,1767217842563,-624.29,0.00026027,2]
[400248344,1767217842573,-832.18,0.00026027,2]
[400248346,1767217842582,-989.73,0.00026027,2]
[400248348,1767217842592,-3814.95,0.00026027,2]
[400248350,1767217842602,-285.08395132,0.00026027,2]
[400248351,1767217842612,-4947.15,0.00026027,2]
[400248353,1767217842621,-1110.78,0.00026027,2]
[400248355,1767217842630,-546.89,0.00026027,2]
[400248356,1767217842639,-500.0,0.00026027,2]
[400248358,1767217842649,-512.77,0.00026027,2]
[400248360,1767217842659,-500.0,0.00026027,2]
[400248362,1767217842668,-541.28,0.00026027,2]
[400248363,1767217842677,-921.25637526,0.00026078,2]
[400248364,1767217842686,-3147.76375777,0.00026195,2]
[400248365,1767217842695,-28444.6191395,0.00026291,2]
[400248366,1767217842705,-17517.2751342,0.00026291,2]
[400248367,1767217842714,-212.8899993,0.00026301,2]
[400248368,1767217842723,-624.29,0.00026301,2]
[400248369,1767217842731,-832.18,0.00026301,2]
[400248370,1767217842740,-989.73,0.00026301,2]
[400248371,1767217842750,-3814.95,0.00026301,2]
[400248372,1767217842759,-4947.15,0.00026301,2]
[400248373,1767217842768,-1110.78,0.00026301,2]
[400248374,1767217842781,-546.89,0.00026301,2]
[400248375,1767217842790,-500.0,0.00026301,2]
[400248376,1767217842800,-512.77,0.00026301,2]
[400248377,1767217842810,-500.0,0.00026301,2]
[400248378,1767217842819,-541.28,0.00026301,2]
[400248379,1767217842828,-212.8899993,0.00026575,2]
[400248380,1767217842838,-624.29,0.00026575,2]
[400248381,1767217842847,-832.18,0.00026575,2]
[400248382,1767217842857,-989.73,0.00026575,2]
[400248383,1767217842866,-3814.95,0.00026575,2]
[400248384,1767217842876,-4947.15,0.00026575,2]
[400248385,1767217842886,-1110.78,0.00026575,2]
[400248386,1767217842897,-546.89,0.00026575,2]
[400248387,1767217842909,-500.0,0.00026575,2]
[400248388,1767217842918,-512.77,0.00026575,2]
[400248389,1767217842928,-500.0,0.00026575,2]
[400248390,1767217842939,-541.28,0.00026575,2]
[400248391,1767217842949,-1973.55132122,0.00026621,2]
[400248392,1767217842958,-887.30342,0.00026676,2]
[400248394,1767217842968,-921.25637526,0.00026687,2]
[400248395,1767217842979,-422.0,0.00026823,7]
[400248396,1767217842989,-28444.6191395,0.00026839,2]
[400248397,1767217842998,-17517.2751342,0.00026839,2]
[400248398,1767217843008,-150.0,0.00026849,2]
[400248400,1767217843018,-624.29,0.00026849,2]
[400248401,1767217843027,-832.18,0.00026849,2]
[400248402,1767217843036,-989.73,0.00026849,2]
[400248403,1767217843046,-3814.95,0.00026849,2]
[400248404,1767217843057,-4947.15,0.00026849,2]
[400248405,1767217843066,-1110.78,0.00026849,2]
[400248406,1767217843076,-546.89,0.00026849,2]
[400248407,1767217843086,-500.0,0.00026849,2]
[400248408,1767217843095,-512.77,0.00026849,2]
[400248409,1767217843104,-500.0,0.00026849,2]
[400248410,1767217843114,-541.28,0.00026849,2]
[400248411,1767217843124,-185.0,0.00026849,22]
[400248412,1767217843133,-150.0,0.00027123,2]
[400248413,1767217843143,-624.29,0.00027123,2]
[400248414,1767217843152,-832.18,0.00027123,2]
[400248415,1767217843162,-989.73,0.00027123,2]
[400248416,1767217843171,-3814.95,0.00027123,2]
[400248417,1767217843181,-4947.15,0.00027123,2]
[400248418,1767217843190,-1110.78,0.00027123,2]
[400248419,1767217843199,-546.89,0.00027123,2]
[400248420,1767217843208,-500.0,0.00027123,2]
[400248421,1767217843218,-512.77,0.00027123,2]
[400248422,1767217843227,-500.0,0.00027123,2]
[400248423,1767217843237,-541.28,0.00027123,2]
[400248424,1767217843247,-921.25637526,0.00027296,2]
[400248425,1767217843257,-8423.69,0.000273,2]
[400248426,1767217843266,-424.0,0.0002734,2]
[400248427,1767217843275,-151.0,0.00027356,2]
[400248428,1767217843284,-1000.0,0.00027385,2]
[400248429,1767217843294,-1000.0,0.00027385,2]
[400248430,1767217843303,-1000.0,0.00027385,2]
[400248431,1767217843313,-1000.0,0.00027385,2]
[400248432,1767217843323,-1000.0,0.00027385,2]
[400248433,1767217843332,-1000.0,0.00027385,2]
[400248434,1767217843342,-1000.0,0.00027385,2]
[400248435,1767217843351,-1000.0,0.00027385,2]
[400248436,1767217843360,-1000.0,0.00027385,2]
[400248437,1767217843370,-1000.0,0.00027385,2]
[400248438,1767217843379,-1000.0,0.00027385,2]
[400248439,1767217843389,-1000.0,0.00027385,2]
[400248440,1767217843398,-1000.0,0.00027385,2]
[400248441,1767217843408,-28444.6191395,0.00027386,2]
[400248442,1767217843417,-17517.2751342,0.00027386,2]
[400248443,1767217843426,-17517.2751342,0.00027387,2]
[400248444,1767217843435,-5000.0,0.00027396,5]
[400248445,1767217843445,-151.0,0.00027396,7]
[400248446,1767217843457,-2398.4119403,0.00027396,5]
[400248447,1767217843466,-250.0,0.00027396,5]
[400248448,1767217843475,-2487.15318209,0.00027396,5]
[400248449,1767217843484,-250.0,0.00027396,5]
[400248450,1767217843494,-250.0,0.00027396,5]
[400248451,1767217843503,-2579.17784983,0.00027396,5]
[400248452,1767217843512,-250.0,0.00027396,5]
[400248453,1767217843521,-250.0,0.00027396,5]
[400248454,1767217843530,-2674.60743027,0.00027396,5]
[400248455,1767217843539,-250.0,0.00027396,5]
[400248456,1767217843548,-250.0,0.00027396,5]
[400248457,1767217843557,-2773.56790519,0.00027396,5]
[400248458,1767217843566,-250.0,0.00027396,5]
[400248459,1767217843575,-250.0,0.00027396,5]
[400248460,1767217843584,-2876.18991768,0.00027396,5]
[400248461,1767217843593,-250.0,0.00027396,5]
[400248462,1767217843602,-250.0,0.00027396,5]
[400248463,1767217843611,-2982.60894464,0.00027396,5]
[400248464,1767217843620,-250.0,0.00027396,5]
[400248465,1767217843630,-250.0,0.00027396,5]
[400248466,1767217843639,-151.0,0.00027396,5]
[400248467,1767217843649,-250.0,0.00027396,5]
[400248468,1767217843659,-250.0,0.00027396,5]
[400248469,1767217843668,-500.0,0.00027396,5]
[400248470,1767217843677,-151.0,0.00027396,5]
[400248471,1767217843687,-250.0,0.00027396,5]
[400248472,1767217843696,-250.0,0.00027396,5]
[400248473,1767217843705,-500.0,0.00027396,5]
[400248474,1767217843715,-151.0,0.00027396,5]
[400248475,1767217843724,-250.0,0.00027396,5]
[400248476,1767217843733,-250.0,0.00027396,5]
[400248477,1767217843743,-500.0,0.00027396,5]
[400248478,1767217843752,-151.0,0.00027396,5]
[400248479,1767217843762,-335.77230478,0.00027396,5]
[400248480,1767217843771,-250.0,0.00027396,5]
[400248481,1767217843780,-500.0,0.00027396,5]
[400248482,1767217843789,-151.0,0.00027396,5]
[400248483,1767217843798,-250.0,0.00027396,5]
[400248484,1767217843808,-500.0,0.00027396,5]
[400248485,1767217843817,-151.0,0.00027396,5]
[400248486,1767217843827,-250.0,0.00027396,5]
[400248487,1767217843836,-500.0,0.00027396,5]
[400248488,1767217843845,-151.0,0.00027396,5]
[400248489,1767217843854,-500.0,0.00027396,5]
[400248490,1767217843864,-151.0,0.00027396,5]
[400248491,1767217843874,-500.0,0.00027396,5]
[400248492,1767217843884,-151.0,0.00027396,5]
[400248493,1767217843894,-500.0,0.00027396,5]
[400248494,1767217843906,-151.0,0.00027396,5]
[400248495,1767217843916,-500.0,0.00027396,5]
[400248496,1767217843926,-151.0,0.00027396,5]
[400248497,1767217843935,-500.0,0.00027396,5]
[400248498,1767217843952,-151.0,0.00027396,5]
[400248499,1767217843966,-500.0,0.00027396,5]
[400248500,1767217844101,-500.0,0.00027396,5]
[400248501,1767217844111,-196.9088468,0.00027396,5]
[400248502,1767217844121,-500.0,0.00027396,5]
[400248503,1767217844131,-500.0,0.00027396,5]
[400248504,1767217844140,-500.0,0.00027396,5]
[400248505,1767217844150,-496.47127164,0.00027396,5]
[400248506,1767217844160,-500.0,0.00027396,5]
[400248507,1767217844170,-500.0,0.00027396,5]
[400248508,1767217844179,-514.84070869,0.00027396,5]
[400248509,1767217844189,-500.0,0.00027396,5]
[400248510,1767217844198,-533.88981491,0.00027396,5]
[400248511,1767217844207,-500.0,0.00027396,5]
[400248512,1767217844218,-553.64373807,0.00027396,5]
[400248513,1767217844227,-500.0,0.00027396,5]
[400248514,1767217844236,-574.12855637,0.00027396,5]
[400248515,1767217844245,-500.0,0.00027396,5]
[400248516,1767217844255,-595.37131296,0.00027396,5]
[400248517,1767217844264,-516.509709,0.00027396,5]
[400248518,1767217844274,-617.40005154,0.00027396,5]
[400248519,1767217844283,-640.24385345,0.00027396,5]
[400248520,1767217844292,-663.93287602,0.00027396,5]
[400248521,1767217844302,-688.49839244,0.00027396,5]
[400248522,1767217844312,-713.97283296,0.00027396,5]
[400248523,1767217844321,-740.38982778,0.00027396,5]
[400248524,1767217844330,-767.7842514,0.00027396,5]
[400248525,1767217844340,-796.19226871,0.00027396,5]
[400248526,1767217844350,-151.0,0.00027396,7]
[400248527,1767217844359,-825.65138265,0.00027396,5]
[400248528,1767217844369,-160.0,0.00027396,5]
[400248529,1767217844379,-160.0,0.00027396,5]
[400248530,1767217844388,-160.0,0.00027396,5]
[400248531,1767217844398,-160.0,0.00027396,5]
[400248532,1767217844407,-160.0,0.00027396,5]
[400248533,1767217844417,-151.12503043,0.00027396,5]
[400248534,1767217844426,-150.0,0.00027397,2]
[400248535,1767217844436,-624.29,0.00027397,2]
[400248536,1767217844445,-832.18,0.00027397,2]
[400248537,1767217844455,-462.17844642,0.00027397,7]
[400248538,1767217844464,-989.73,0.00027397,2]
[400248539,1767217844473,-3814.95,0.00027397,2]
[400248540,1767217844483,-1846.86507188,0.00027397,7]
[400248541,1767217844493,-4947.15,0.00027397,2]
[400248542,1767217844502,-1110.78,0.00027397,2]
[400248543,1767217844511,-546.89,0.00027397,2]
[400248544,1767217844521,-327.7069689,0.00027397,2]
[400248545,1767217844531,-512.77,0.00027397,2]
[400248546,1767217844540,-640.5,0.00027397,2]
[400248547,1767217844550,-299.0,0.00027397,2]
[400248548,1767217844559,-299.0,0.00027397,2]
[400248549,1767217844569,-299.0,0.00027397,2]
[400248550,1767217844578,-299.0,0.00027397,2]
[400248551,1767217844587,-299.0,0.00027397,2]
[400248552,1767217844596,-299.0,0.00027397,2]
[400248553,1767217844605,-299.0,0.00027397,2]
[400248554,1767217844614,-299.0,0.00027397,2]
[400248555,1767217844624,-299.0,0.00027397,2]
[400248556,1767217844633,-299.0,0.00027397,2]
[400248557,1767217844643,-299.0,0.00027397,2]
[400248558,1767217844652,-299.0,0.00027397,2]
[400248559,1767217844661,-299.0,0.00027397,2]
[400248560,1767217844670,-299.0,0.00027397,2]
[400248561,1767217844678,-299.0,0.00027397,2]
[400248562,1767217844687,-299.0,0.00027397,2]
[400248563,1767217844697,-299.0,0.00027397,2]
[400248564,1767217844707,-299.0,0.00027397,2]
[400248565,1767217844716,-299.0,0.00027397,2]
[400248566,1767217844725,-299.0,0.00027397,2]
[400248567,1767217844735,-299.0,0.00027397,2]
[400248568,1767217844752,-299.0,0.00027397,2]
[400248569,1767217844765,-299.0,0.00027397,2]
[400248570,1767217844775,-299.0,0.00027397,2]
[400248571,1767217844786,-299.0,0.00027397,2]
[400248572,1767217844797,-299.0,0.00027397,2]
[400248573,1767217844807,-299.0,0.00027397,2]
[400248574,1767217844817,-299.0,0.00027397,2]
[400248575,1767217844827,-299.0,0.00027397,2]
[400248576,1767217844837,-299.0,0.00027397,2]
[400248577,1767217844847,-299.0,0.00027397,2]
[400248578,1767217844857,-299.0,0.00027397,2]
[400248579,1767217844867,-179.18193,0.00027397,7]
[400248581,1767217844878,-197.835449,0.00027397,7]
[400248583,1767217844887,-197.835449,0.00027397,7]
[400248585,1767217844900,-197.835449,0.00027397,7]
[400248587,1767217844909,-197.835449,0.00027397,7]
[400248589,1767217844919,-151.0,0.00027397,7]
[400248591,1767217844929,-151.0,0.00027397,7]
[400248593,1767217844940,-151.371196,0.00027397,7]
[400248595,1767217844951,-151.0,0.00027397,7]
[400248597,1767217844961,-174.021313,0.00027397,7]
[400248599,1767217844970,-151.0,0.00027397,7]
[400248601,1767217844981,-174.021313,0.00027397,7]
[400248603,1767217844990,-170.594651,0.00027397,7]
[400248605,1767217845001,-174.021313,0.00027397,7]
[400248607,1767217845011,-174.021313,0.00027397,7]
[400248608,1767217845021,-151.0,0.00027397,7]
[400248610,1767217845031,-151.0,0.00027397,7]
[400248612,1767217845041,-151.0,0.00027397,7]
[400248614,1767217845051,-151.0,0.00027397,7]
[400248616,1767217845061,-194.730343,0.00027397,7]
[400248618,1767217845071,-754.40778,0.00027397,7]
[400248620,1767217845081,-754.40778,0.00027397,7]
[400248622,1767217845091,-151.0,0.00027397,7]
[400248625,1767217845101,-754.40778,0.00027397,7]
[400248627,1767217845111,-254.088517,0.00027397,7]
[400248629,1767217845121,-754.40778,0.00027397,7]
[400248630,1767217845131,-500.65812564,0.00027397,5]
[400248632,1767217845140,-150.0,0.00027397,5]
[400248634,1767217845150,-150.58382148,0.00027397,5]
[400248636,1767217845159,-5000.0,0.00027399,14]
[400248638,1767217845168,-617.04624241,0.00027508,7]
[400248640,1767217845178,-3147.76375777,0.00027559,2]
[400248642,1767217845187,-624.29,0.00027671,2]
[400248644,1767217845196,-832.18,0.00027671,2]
[400248646,1767217845206,-989.73,0.00027671,2]
[400248648,1767217845215,-3814.95,0.00027671,2]
[400248650,1767217845225,-4947.15,0.00027671,2]
[400248652,1767217845235,-1110.78,0.00027671,2]
[400248654,1767217845244,-546.89,0.00027671,2]
[400248656,1767217845254,-512.77,0.00027671,2]
[400248658,1767217845264,-369.87167033,0.00027674,2]
[400248661,1767217845274,-2000.0,0.00027688,7]
[400248663,1767217845284,-2000.0,0.00027697,7]
[400248665,1767217845294,-2000.0,0.00027706,7]
[400248667,1767217845304,-2000.0,0.00027715,7]
[400248669,1767217845313,-2000.0,0.00027724,7]
[400248671,1767217845322,-2000.0,0.00027732,7]
[400248673,1767217845331,-2000.0,0.00027741,7]
[400248675,1767217845342,-2000.0,0.0002775,7]
[400248677,1767217845352,-2000.0,0.00027759,7]
[400248678,1767217845361,-5000.0,0.00027764,2]
[400248680,1767217845371,-2000.0,0.00027768,7]
[400248682,1767217845380,-2000.0,0.00027776,7]
[400248685,1767217845390,-17517.2751342,0.00027784,2]
[400248687,1767217845399,-2000.0,0.00027785,7]
[400248689,1767217845408,-2000.0,0.00027794,7]
[400248690,1767217845417,-2000.0,0.00027803,7]
[400248692,1767217845428,-2000.0,0.00027812,7]
[400248695,1767217845437,-2000.0,0.0002782,7]
[400248696,1767217845446,-2000.0,0.00027829,7]
[400248698,1767217845456,-2000.0,0.00027838,7]
[400248700,1767217845465,-2000.0,0.00027847,7]
[400248703,1767217845475,-5000.0,0.00027847,7]
[400248704,1767217845485,-1935.12952139,0.00027848,7]
[400248706,1767217845496,-2000.0,0.00027856,7]
[400248708,1767217845506,-2000.0,0.00027864,7]
[400248710,1767217845516,-2000.0,0.00027873,7]
[400248712,1767217845526,-2000.0,0.00027882,7]
[400248714,1767217845535,-2000.0,0.00027891,7]
[400248716,1767217845545,-2000.0,0.000279,7]
[400248719,1767217845555,-154.33,0.000279,2]
[400248721,1767217845564,-368.0,0.00027902,2]
[400248722,1767217845575,-2000.0,0.00027908,7]
[400248724,1767217845584,-2000.0,0.00027917,7]
[400248726,1767217845594,-2000.0,0.00027926,7]
[400248728,1767217845604,-2000.0,0.00027935,7]
[400248730,1767217845614,-17517.2751342,0.00027935,2]
[400248732,1767217845623,-2000.0,0.00027944,7]
[400248734,1767217845632,-624.29,0.00027945,2]
[400248736,1767217845643,-832.18,0.00027945,2]
[400248738,1767217845653,-989.73,0.00027945,2]
[400248740,1767217845662,-3814.95,0.00027945,2]
[400248742,1767217845672,-4947.15,0.00027945,2]
[400248744,1767217845682,-1110.78,0.00027945,2]
[400248746,1767217845691,-546.89,0.00027945,2]
[400248748,1767217845701,-512.77,0.00027945,2]
[400248750,1767217845710,-152.36606131,0.00027945,5]
[400248752,1767217845720,-2000.0,0.00027952,7]
[400248754,1767217845729,-2000.0,0.00027961,7]
[400248756,1767217845738,-2000.0,0.0002797,7]
[400248758,1767217845747,-2000.0,0.00027979,7]
[400248760,1767217845757,-2000.0,0.00027988,7]
[400248762,1767217845766,-2000.0,0.00027996,7]
[400248764,1767217845775,-1041.66666667,0.00028,7]
[400248766,1767217845785,-2000.0,0.00028005,7]
[400248768,1767217845795,-2000.0,0.00028012,7]
[400248770,1767217845805,-2000.0,0.00028014,7]
[400248772,1767217845814,-2000.0,0.0002802,7]
[400248774,1767217845823,-2000.0,0.00028029,7]
[400248776,1767217845832,-1041.66666667,0.00028029,7]
[400248778,1767217845842,-2000.0,0.00028038,7]
[400248780,1767217845851,-2000.0,0.00028047,7]
[400248782,1767217845861,-2000.0,0.00028056,7]
[400248784,1767217845870,-2000.0,0.00028064,7]
[400248785,1767217845880,-2000.0,0.00028073,7]
[400248787,1767217845889,-2000.0,0.00028082,7]
[400248789,1767217845903,-2000.0,0.00028091,7]
[400248791,1767217845912,-2000.0,0.000281,7]
[400248793,1767217845922,-368.0,0.00028107,2]
[400248795,1767217845932,-421.0,0.00028127,2]
[400248797,1767217845941,-1121.0,0.0002821,2]
[400248799,1767217845951,-624.49635778,0.00028219,2]
[400248801,1767217845961,-832.26900291,0.00028219,2]
[400248803,1767217845971,-989.90978008,0.00028219,2]
[400248806,1767217845980,-3814.98751312,0.00028219,2]
[400248809,1767217845990,-4947.27811069,0.00028219,2]
[400248812,1767217846000,-1110.95123298,0.00028219,2]
[400248815,1767217846010,-547.08268095,0.00028219,2]
[400248818,1767217846019,-512.8574778,0.00028219,2]
[400248829,1767217846030,-160.0,0.00028232,3]
[400248832,1767217846081,-421.0,0.00028282,2]
[400248834,1767217846091,-368.0,0.00028289,2]
[400248836,1767217846100,-368.0,0.00028308,2]
[400248838,1767217846110,-368.0,0.00028324,2]
[400248839,1767217846130,-368.0,0.00028349,2]
[400248842,1767217846140,-421.0,0.00028472,2]
[400248845,1767217846149,-30115.31566406,0.000285,7]
[400248848,1767217846159,-1041.66666667,0.000285,7]
[400248850,1767217846168,-368.0,0.00028532,2]
[400248851,1767217846178,-368.0,0.00028546,7]
[400248852,1767217846187,-368.0,0.0002859,7]
[400248853,1767217846196,-368.0,0.00028739,2]
[400248854,1767217846206,-26860.43220075,0.0002876,2]
[400248856,1767217846215,-2028.77969745,0.0002876,5]
[400248857,1767217846224,-19129.54201656,0.0002876,2]
[400248859,1767217846234,-5770.30317135,0.0002876,30]
[400248861,1767217846244,-166.112827,0.0002876,7]
[400248862,1767217846253,-151.0,0.0002876,7]
[400248864,1767217846263,-440.924061,0.0002876,7]
[400248866,1767217846273,-440.924061,0.0002876,7]
[400248868,1767217846282,-440.924061,0.0002876,7]
[400248870,1767217846293,-440.924061,0.0002876,7]
[400248871,1767217846302,-151.0,0.0002876,7]
[400248872,1767217846311,-151.0,0.0002876,7]
[400248873,1767217846320,-151.0,0.0002876,7]
[400248874,1767217846330,-612.575308,0.0002876,7]
[400248875,1767217846339,-151.0,0.0002876,7]
[400248876,1767217846349,-612.575308,0.0002876,7]
[400248877,1767217846359,-612.575308,0.0002876,7]
[400248878,1767217846368,-612.575308,0.0002876,7]
[400248879,1767217846377,-151.0,0.0002876,7]
[400248880,1767217846387,-151.0,0.0002876,7]
[400248881,1767217846396,-151.0,0.0002876,7]
[400248882,1767217846406,-151.0,0.0002876,7]
[400248883,1767217846415,-465.090216,0.0002876,7]
[400248884,1767217846424,-367.945551,0.0002876,7]
[400248885,1767217846434,-465.090216,0.0002876,7]
[400248886,1767217846443,-367.945551,0.0002876,7]
[400248887,1767217846453,-293.104127,0.0002876,7]
[400248888,1767217846462,-465.090216,0.0002876,7]
[400248889,1767217846471,-367.945551,0.0002876,7]
[400248890,1767217846481,-293.104127,0.0002876,7]
[400248891,1767217846490,-465.090216,0.0002876,7]
[400248892,1767217846500,-367.945551,0.0002876,7]
[400248893,1767217846509,-293.104127,0.0002876,7]
[400248894,1767217846518,-293.104127,0.0002876,7]
[400248895,1767217846528,-151.0,0.0002876,7]
[400248896,1767217846537,-151.0,0.0002876,7]
[400248897,1767217846547,-151.0,0.0002876,7]
[400248898,1767217846556,-151.0,0.0002876,7]
[400248899,1767217846566,-151.0,0.0002876,7]
[400248900,1767217846575,-151.0,0.0002876,7]
[400248901,1767217846584,-152.611704,0.0002876,7]
[400248902,1767217846593,-394.521351,0.0002876,7]
[400248904,1767217846602,-429.596572,0.0002876,7]
[400248906,1767217846611,-394.521351,0.0002876,7]
[400248907,1767217846621,-429.596572,0.0002876,7]
[400248908,1767217846630,-394.521351,0.0002876,7]
[400248909,1767217846639,-429.596572,0.0002876,7]
[400248910,1767217846648,-394.521351,0.0002876,7]
[400248911,1767217846658,-429.596572,0.0002876,7]
[400248912,1767217846667,-177.488115,0.0002876,7]
[400248913,1767217846676,-182.784702,0.0002876,7]
[400248914,1767217846686,-805.861522,0.0002876,7]
[400248915,1767217846696,-805.861522,0.0002876,7]
[400248916,1767217846705,-151.0,0.0002876,7]
[400248917,1767217846714,-805.861522,0.0002876,7]
[400248918,1767217846723,-187.899686,0.0002876,7]
[400248919,1767217846732,-151.0,0.0002876,7]
[400248920,1767217846742,-805.861522,0.0002876,7]
[400248921,1767217846753,-151.0,0.0002876,7]
[400248922,1767217846763,-209.486994,0.0002876,7]
[400248923,1767217846772,-1430.143678,0.0002876,7]
[400248924,1767217846781,-1430.143678,0.0002876,7]
[400248925,1767217846790,-151.0,0.0002876,7]